bitfinex/quotes_BTCUSD_20250602
["timestamp","ask_amount","ask_price","bid_price","bid_amount"]
[1748875907440,0.25234298,104120.0,104110.0,0.73540464]
[1748875907642,0.23313558,104120.0,104110.0,0.30658954]
[1748875907865,0.57313558,104120.0,104110.0,0.20170954]
[1748875908215,0.57313558,104120.0,104110.0,0.21131448]
[1748875908623,0.35935282,104120.0,104110.0,0.31617727]
[1748875908832,0.35935272,104120.0,104110.0,0.31617727]
[1748875909062,0.00974898,104120.0,104110.0,0.31617727]
[1748875909284,0.00974889,104120.0,104110.0,0.41203157]
[1748875909418,0.00014542,104120.0,104110.0,0.3263782]
[1748875910467,0.00014542,104120.0,104110.0,0.3579782]
[1748875910634,0.10014542,104120.0,104110.0,0.3579782]
[1748875910852,0.10014542,104120.0,104110.0,0.45048942]
[1748875911014,0.10014542,104120.0,104110.0,0.3263782]
[1748875911215,0.10974889,104120.0,104110.0,0.7505782]
[1748875911748,0.10014542,104120.0,104110.0,0.7263782]
[1748875911980,0.10014542,104120.0,104110.0,1.32919027]
[1748875912816,0.10014542,104120.0,104110.0,1.35801627]
[1748875913031,0.10014542,104120.0,104110.0,1.03873627]
[1748875913239,0.10014542,104120.0,104110.0,1.35997627]
[1748875913814,0.10014542,104120.0,104110.0,1.36197627]
[1748875915287,0.05914542,104120.0,104110.0,1.36197627]
[1748875915894,0.05914542,104120.0,104110.0,0.93785627]
[1748875916441,0.05914542,104120.0,104110.0,1.36185627]
[1748875916646,0.05914542,104120.0,104110.0,1.37094942]
[1748875916862,0.05914542,104120.0,104110.0,0.93785627]
[1748875917074,0.109753,104120.0,104110.0,0.41600896]
[1748875917278,0.109753,104120.0,104110.0,0.43521838]
[1748875917422,0.10975281,104120.0,104110.0,0.43521838]
[1748875917624,0.12896076,104120.0,104110.0,0.5257296]
[1748875917821,0.31144316,104120.0,104110.0,0.41400896]
[1748875918057,0.31144316,104120.0,104110.0,0.42661381]
[1748875918229,0.31144316,104120.0,104110.0,0.43121857]
[1748875918424,0.31144316,104120.0,104110.0,0.43421857]
[1748875918627,0.31144316,104120.0,104110.0,0.42561372]
[1748875919033,0.31144316,104120.0,104110.0,0.51512494]
[1748875919228,0.32104737,104120.0,104110.0,0.51612494]
[1748875919794,0.30183979,104120.0,104110.0,0.40440402]
[1748875919970,0.30183979,104120.0,104110.0,0.42361419]
[1748875920172,0.30183979,104120.0,104110.0,0.41400915]
[1748875920351,0.66513568,104120.0,104110.0,0.002]
[1748875927555,0.63193568,104120.0,104110.0,0.1941045]
[1748875927905,0.64153998,104120.0,104110.0,0.05312191]
[1748875928116,0.64153998,104120.0,104110.0,0.002]
[1748875928326,0.06874907,104120.0,104110.0,0.63769335]
[1748875928542,0.06874907,104120.0,104110.0,0.74253335]
[1748875928750,0.06874907,104120.0,104110.0,0.90870046]
[1748875928751,0.05914542,104120.0,104110.0,0.90870046]
[1748875928974,0.05914542,104120.0,104110.0,0.42044046]
[1748875929188,0.05914542,104120.0,104110.0,0.84416046]
[1748875929433,0.05914542,104120.0,104110.0,0.42044046]
[1748875929643,0.05914542,104120.0,104110.0,0.74963994]
[1748875929644,0.07835254,104120.0,104110.0,0.74963994]
[1748875929853,0.05914542,104120.0,104110.0,0.74963994]
[1748875930082,0.06874889,104120.0,104110.0,0.74963994]
[1748875930490,0.05914542,104120.0,104110.0,0.74963994]
[1748875930939,0.11855693,104120.0,104110.0,0.42115537]
[1748875931141,0.11855693,104120.0,104110.0,0.43120881]
[1748875931349,0.12816114,104120.0,104110.0,0.43004881]
[1748875931760,0.29925149,104120.0,104110.0,0.43004881]
[1748875931980,0.06874898,104120.0,104110.0,0.85051518]
[1748875932387,0.05914542,104120.0,104110.0,0.85051518]
[1748875932593,0.06874898,104120.0,104110.0,0.85051518]
[1748875933179,0.07835272,104120.0,104110.0,0.85051518]
[1748875933383,0.05914542,104120.0,104110.0,0.85051518]
[1748875933584,0.07835263,104120.0,104110.0,0.85051518]
[1748875933944,0.06874898,104120.0,104110.0,0.85051518]
[1748875934170,0.07835282,104120.0,104110.0,0.85051518]
[1748875934519,0.06874898,104120.0,104110.0,0.85051518]
[1748875935123,0.11135263,104120.0,104110.0,1.15792396]
[1748875935552,0.07835263,104120.0,104110.0,1.15792396]
[1748875935762,0.13056058,104120.0,104110.0,0.72520881]
[1748875935968,0.13056058,104120.0,104110.0,0.63432405]
[1748875936376,0.31304307,104120.0,104110.0,0.61511463]
[1748875936579,0.31304307,104120.0,104110.0,0.63432442]
[1748875936782,0.31304307,104120.0,104110.0,0.65353385]
[1748875936988,0.31304307,104120.0,104110.0,0.64392918]
[1748875937166,0.31304307,104120.0,104110.0,0.65349329]
[1748875937376,0.33225158,104120.0,104110.0,0.65349329]
[1748875937617,0.14016553,104120.0,104110.0,0.65349329]
[1748875937824,0.12095702,104120.0,104110.0,0.65349329]
[1748875938026,0.13056104,104120.0,104110.0,0.65349329]
[1748875938347,0.05914542,104120.0,104110.0,0.74600451]
[1748875938564,0.05914542,104120.0,104110.0,0.66264952]
[1748875938768,0.05914542,104120.0,104110.0,0.72454952]
[1748875938966,0.05914542,104120.0,104110.0,0.72454828]
[1748875939194,0.05914542,104120.0,104110.0,0.69304828]
[1748875939816,0.05914542,104120.0,104110.0,0.66264828]
[1748875940051,0.06874898,104120.0,104110.0,1.06264828]
[1748875940258,0.05914542,104120.0,104110.0,1.06264828]
[1748875940460,0.06874889,104120.0,104110.0,1.06264828]
[1748875940669,0.05914542,104120.0,104110.0,1.1551595]
[1748875941088,0.05914542,104120.0,104110.0,1.06264828]
[1748875941289,0.06874889,104120.0,104110.0,1.06264828]
[1748875941526,0.05914542,104120.0,104110.0,1.06264828]
[1748875941745,0.06874898,104120.0,104110.0,1.06256828]
[1748875941951,0.28964701,104120.0,104110.0,0.73436371]
[1748875942179,0.3927758,104120.0,104110.0,0.72064393]
[1748875942390,0.34364391,104120.0,104110.0,0.73024897]
[1748875942543,0.33403998,104120.0,104110.0,1.12064393]
[1748875942743,0.33403998,104120.0,104110.0,0.9189343]
[1748875942940,0.33403998,104120.0,104110.0,0.72064402]
[1748875943178,0.1921045,104110.0,104100.0,0.20172858]
[1748875943417,0.1921045,104110.0,104100.0,0.74899314]
[1748875943418,0.05981455,104110.0,104100.0,0.74899314]
[1748875943628,0.26152427,104110.0,104100.0,1.1585991]
[1748875943763,0.05981418,104110.0,104100.0,0.7355591]
[1748875943963,0.06941922,104110.0,104100.0,1.1585991]
[1748875944163,0.06941922,104110.0,104100.0,0.7585991]
[1748875944363,0.07902435,104110.0,104100.0,0.7615991]
[1748875944565,0.04802435,104110.0,104100.0,1.1615991]
[1748875944786,0.24012885,104110.0,104100.0,1.1519536]
[1748875944995,0.27212885,104110.0,104100.0,1.13274196]
[1748875945197,0.26302418,104110.0,104100.0,0.7519536]
[1748875945445,0.26302418,104110.0,104100.0,0.76155919]
[1748875945597,0.26302418,104110.0,104100.0,0.53101338]
[1748875945799,0.30803471,104110.0,104100.0,0.10801338]
[1748875946007,0.27691401,104110.0,104100.0,0.005]
[1748875946826,0.61691401,104110.0,104100.0,0.005]
[1748875956674,0.61691401,104110.0,104100.0,0.002]
[1748875956870,0.61791401,104110.0,104100.0,0.002]
[1748875957331,0.71042523,104110.0,104100.0,0.002]
[1748875957538,0.80627953,104110.0,104100.0,0.002]
[1748875957883,0.27275489,104090.0,104080.0,0.07696378]
[1748875959275,0.27275489,104090.0,104080.0,0.07896378]
[1748875959587,0.27275489,104090.0,104080.0,0.08196378]
[1748875959786,0.29245981,104090.0,104080.0,0.005]
[1748875960428,0.27275489,104090.0,104080.0,0.005]
[1748875963756,0.61275489,104090.0,104080.0,0.005]
[1748875965580,0.70860919,104090.0,104080.0,0.005]
[1748875965782,0.81272919,104090.0,104080.0,0.005]
[1748875966060,0.82727004,104090.0,104080.0,0.005]
[1748875966213,0.91978126,104090.0,104080.0,0.005]
[1748875966985,0.97978126,104090.0,104080.0,0.005]
[1748875967186,0.97978126,104090.0,104080.0,0.003]
[1748875967400,0.21141582,104060.0,104050.0,0.07696378]
[1748875967618,0.24201582,104060.0,104050.0,0.07696378]
[1748875968443,0.24201582,104060.0,104050.0,0.08196378]
[1748875968676,0.24201582,104060.0,104050.0,0.08244867]
[1748875969512,0.65991692,104060.0,104050.0,0.00548489]
[1748875969711,0.61331582,104060.0,104050.0,0.00548489]
[1748875969882,0.70917012,104060.0,104050.0,0.00548489]
[1748875970093,1.02729012,104060.0,104050.0,0.00548489]
[1748875970745,1.02729012,104060.0,104050.0,0.00048489]
[1748875970940,1.10572595,104060.0,104050.0,0.00148489]
[1748875971148,1.10572595,104060.0,104050.0,0.00248489]
[1748875972304,0.70917012,104060.0,104050.0,0.00248489]
[1748875972532,1.02725012,104060.0,104050.0,0.00248489]
[1748875978230,0.70917012,104060.0,104050.0,0.00248489]
[1748875978513,1.02717012,104060.0,104050.0,0.00248489]
[1748875981119,0.70917012,104060.0,104050.0,0.00248489]
[1748875981314,1.11726665,104060.0,104050.0,0.00248489]
[1748875983114,1.1318075,104060.0,104050.0,0.00248489]
[1748875983945,1.1318075,104060.0,104050.0,0.00148489]
[1748875984366,1.1348075,104060.0,104050.0,0.00048489]
[1748875984781,1.1368075,104060.0,104050.0,0.00048489]
[1748875985205,1.1968075,104060.0,104050.0,0.00048489]
[1748875987125,0.8788475,104060.0,104050.0,0.00048489]
[1748875987349,1.3008475,104060.0,104050.0,0.00048489]
[1748875988488,1.21071097,104060.0,104050.0,0.00048489]
[1748875988707,0.77417012,104060.0,104050.0,0.00048489]
[1748875988916,0.77417012,104060.0,104050.0,0.19270017]
[1748875988917,0.61641582,104060.0,104050.0,0.19270017]
[1748875989123,0.61641582,104060.0,104050.0,0.27927471]
[1748875989124,0.27641582,104060.0,104050.0,0.27927471]
[1748875989314,0.03382812,104060.0,104050.0,0.62071542]
[1748875989536,0.0146091,104060.0,104050.0,0.62071542]
[1748875989740,0.03382776,104060.0,104050.0,0.56972018]
[1748875990202,0.02421829,104060.0,104050.0,0.56972018]
[1748875990411,0.04343731,104060.0,104050.0,0.56972018]
[1748875990620,0.21641582,104060.0,104050.0,0.03058489]
[1748875990843,0.21441582,104060.0,104050.0,0.00048489]
[1748875991043,0.21141582,104060.0,104050.0,0.00048489]
[1748875991259,0.21241582,104060.0,104050.0,0.00048489]
[1748875991458,0.21341582,104060.0,104050.0,0.00048489]
[1748875992490,0.55341582,104060.0,104050.0,0.00048489]
[1748875992690,0.71077012,104060.0,104050.0,0.00048489]
[1748875993225,1.02849012,104060.0,104050.0,0.00048489]
[1748875994432,0.58441582,104060.0,104050.0,0.00048489]
[1748875994636,0.21147679,104030.0,104020.0,0.36980051]
[1748875994839,0.21147679,104030.0,104020.0,0.49422463]
[1748875995055,0.21147679,104030.0,104020.0,0.50323544]
[1748875995056,0.2210894,104030.0,104020.0,0.50323544]
[1748875995270,0.01922456,104030.0,104020.0,0.50383751]
[1748875995687,0.01922456,104030.0,104020.0,0.5128481]
[1748875995884,0.02883707,104030.0,104020.0,0.50383888]
[1748875996096,0.23070191,104030.0,104020.0,0.82447888]
[1748875996300,0.03844968,104030.0,104020.0,0.82447888]
[1748875996528,0.01922456,104030.0,104020.0,0.82447888]
[1748875996710,0.02883707,104030.0,104020.0,0.83348947]
[1748875996931,0.02883707,104030.0,104020.0,0.83648947]
[1748875997133,0.02883707,104030.0,104020.0,0.9199901]
[1748875997339,0.02883643,104030.0,104020.0,0.82619888]
[1748875997474,0.22108866,104030.0,104020.0,0.498946]
[1748875997689,0.22108866,104030.0,104020.0,0.785046]
[1748875997891,0.20186465,104030.0,104020.0,0.76704304]
[1748875998092,0.20186465,104030.0,104020.0,0.14379889]
[1748875998300,0.20186465,104030.0,104020.0,0.7760541]
[1748875998474,0.20186465,104030.0,104020.0,0.76704304]
[1748875999110,0.20186465,104030.0,104020.0,0.00614542]
[1748875999111,0.63326207,104030.0,104020.0,0.00614542]
[1748875999327,0.6430642,104030.0,104020.0,0.00614542]
[1748875999773,0.6430642,104030.0,104020.0,0.0121577]
[1748876000093,0.6430642,104030.0,104020.0,0.00314542]
[1748876000265,0.6430642,104030.0,104020.0,0.01215765]
[1748876000468,0.6430642,104030.0,104020.0,0.01215777]
[1748876000678,0.6430642,104030.0,104020.0,0.00314542]
[1748876001468,0.6430642,104030.0,104020.0,0.01215805]
[1748876001688,0.67192554,104030.0,104020.0,0.00314542]
[1748876002051,0.6325157,104030.0,104020.0,0.00314542]
[1748876002455,0.6019157,104030.0,104020.0,0.00314542]
[1748876002703,0.6019157,104030.0,104020.0,0.01215791]
[1748876002853,0.6019157,104030.0,104020.0,0.00314542]
[1748876003249,0.5709157,104030.0,104020.0,0.00314542]
[1748876003465,0.5709157,104030.0,104020.0,0.03614542]
[1748876003691,0.20205436,104030.0,104020.0,0.03614542]
[1748876003898,0.20205436,104030.0,104020.0,0.06764542]
[1748876004106,0.20205436,104030.0,104020.0,0.28755175]
[1748876004331,0.20205436,104030.0,104020.0,0.28755182]
[1748876004544,0.20205436,104030.0,104020.0,0.58640725]
[1748876004764,0.20205436,104030.0,104020.0,0.60563385]
[1748876004971,0.20205436,104030.0,104020.0,0.59602069]
[1748876005177,0.20205436,104030.0,104020.0,0.60563404]
[1748876005419,0.20205436,104030.0,104020.0,0.61524729]
[1748876005642,0.01922429,104030.0,104020.0,0.73032763]
[1748876005861,0.0288368,104030.0,104020.0,0.73933862]
[1748876006108,0.23070164,104030.0,104020.0,0.73032763]
[1748876006281,0.55145665,104040.0,104030.0,0.20186465]
[1748876006526,0.55145665,104040.0,104030.0,0.33772465]
[1748876006761,0.55145665,104040.0,104030.0,0.48360315]
[1748876006762,0.02883376,104040.0,104030.0,0.48360315]
[1748876006961,0.02883376,104040.0,104030.0,0.57611437]
[1748876007166,0.01922226,104040.0,104030.0,0.48360315]
[1748876007378,0.02883367,104040.0,104030.0,0.49279748]
[1748876007591,0.03844517,104040.0,104030.0,0.48360315]
[1748876007971,0.03844517,104040.0,104030.0,0.88360315]
[1748876008409,0.02983376,104040.0,104030.0,0.88360315]
[1748876008625,0.03083376,104040.0,104030.0,0.97611437]
[1748876008828,0.03083376,104040.0,104030.0,0.88360315]
[1748876009454,0.22306751,104040.0,104030.0,0.73943119]
[1748876009664,0.20384525,104040.0,104030.0,0.4]
[1748876009874,0.03844867,104030.0,104020.0,0.2398798]
[1748876010078,0.03844867,104030.0,104020.0,0.76604786]
[1748876010492,0.02883616,104030.0,104020.0,0.76604786]
[1748876010699,0.0192242,104030.0,104020.0,0.76604786]
[1748876010905,0.01922392,104030.0,104020.0,0.76604786]
[1748876011141,0.02022235,104040.0,104030.0,0.22108894]
[1748876011355,0.02983385,104040.0,104030.0,0.34764324]
[1748876011561,0.02983385,104040.0,104030.0,0.37914324]
[1748876011734,0.23167928,104040.0,104030.0,0.37914342]
[1748876011981,0.01926873,104050.0,104040.0,0.22106769]
[1748876012156,0.56102677,104060.0,104050.0,0.21143652]
[1748876012386,0.57063661,104060.0,104050.0,0.22104728]
[1748876012590,0.57063661,104060.0,104050.0,0.23065776]
[1748876013266,0.35921847,104060.0,104050.0,0.2402675]
[1748876013481,0.36882812,104060.0,104050.0,0.2402675]
[1748876013708,0.36882812,104060.0,104050.0,0.3026675]
[1748876013917,0.19219516,104070.0,104060.0,0.20180654]
[1748876013918,0.55139515,104070.0,104060.0,0.20180654]
[1748876014128,0.02902982,104060.0,104050.0,0.34028971]
[1748876014359,0.23063467,104060.0,104050.0,0.77090094]
[1748876014593,0.02882803,104060.0,104050.0,0.74851105]
[1748876015069,0.04243749,104060.0,104050.0,0.74851105]
[1748876015290,0.03843749,104060.0,104050.0,0.78085647]
[1748876015516,0.04904723,104060.0,104050.0,0.78085647]
[1748876015750,0.03943749,104060.0,104050.0,0.78085647]
[1748876015978,0.02982784,104060.0,104050.0,0.87236769]
[1748876016205,0.001,104060.0,104050.0,0.77985647]
[1748876016440,0.03082776,104060.0,104050.0,0.81135647]
[1748876016909,0.04043741,104060.0,104050.0,0.81135647]
[1748876017133,0.03082776,104060.0,104050.0,0.81135647]
[1748876017357,0.03082766,104060.0,104050.0,0.81135647]
[1748876017611,0.2326343,104060.0,104050.0,1.17024636]
[1748876017840,0.24224414,104060.0,104050.0,1.17024636]
[1748876018084,0.24224414,104060.0,104050.0,1.17985656]
[1748876018509,0.24224414,104060.0,104050.0,0.42102542]
[1748876018510,0.24461638,104060.0,104050.0,0.42102542]
[1748876018714,0.24461638,104060.0,104050.0,0.00014542]
[1748876018933,0.35747487,104060.0,104050.0,0.00014542]
[1748876019144,0.69747487,104060.0,104050.0,0.00014542]
[1748876019872,0.61561638,104060.0,104050.0,0.00014542]
[1748876022007,0.61561638,104060.0,104050.0,0.20197127]
[1748876022008,0.35160947,104060.0,104050.0,0.20197127]
[1748876022140,0.36121866,104060.0,104050.0,0.31704607]
[1748876022341,0.37082831,104060.0,104050.0,0.31704607]
[1748876022552,0.38043805,104060.0,104050.0,0.31704607]
[1748876022869,0.04043805,104060.0,104050.0,0.31704607]
[1748876023073,0.03082831,104060.0,104050.0,0.31704607]
[1748876023440,0.002,104060.0,104050.0,0.34844607]
[1748876023691,0.0116091,104060.0,104050.0,0.47245729]
[1748876023887,0.002,104060.0,104050.0,0.37994607]
[1748876025811,0.011609,104060.0,104050.0,0.37994607]
[1748876026030,0.02121847,104060.0,104050.0,0.73732617]
[1748876026254,0.03082803,104060.0,104050.0,0.73728617]
[1748876026463,0.02121847,104060.0,104050.0,0.73728617]
[1748876026666,0.02121847,104060.0,104050.0,0.31704617]
[1748876026667,0.03082794,104060.0,104050.0,0.31704617]
[1748876026871,0.03082794,104060.0,104050.0,0.73728617]
[1748876027288,0.04043759,104060.0,104050.0,0.73728617]
[1748876027486,0.03082794,104060.0,104050.0,0.73728617]
[1748876027664,0.04043759,104060.0,104050.0,0.73728617]
[1748876027894,0.03082794,104060.0,104050.0,0.73728617]
[1748876028075,0.21341601,104060.0,104050.0,0.19931972]
[1748876028336,0.24391601,104060.0,104050.0,0.72763606]
[1748876028546,0.24391601,104060.0,104050.0,0.73724626]
[1748876028751,0.21341601,104060.0,104050.0,0.73724626]
[1748876028967,0.03082831,104060.0,104050.0,0.74685637]
[1748876029143,0.02121866,104060.0,104050.0,0.74685637]
[1748876029376,0.01160919,104060.0,104050.0,0.74685637]
[1748876029586,0.002,104060.0,104050.0,0.83936759]
[1748876029805,0.02121838,104060.0,104050.0,0.83936759]
[1748876029984,0.03082794,104060.0,104050.0,0.83936759]
[1748876030426,0.04043759,104060.0,104050.0,0.83936759]
[1748876030630,0.24224423,104060.0,104050.0,0.83936759]
[1748876031444,0.23263448,104060.0,104050.0,0.74685637]
[1748876031654,0.0404374,104060.0,104050.0,0.74685637]
[1748876031831,0.2326342,104060.0,104050.0,0.73724626]
[1748876032065,0.24224394,104060.0,104050.0,0.74685637]
[1748876032694,0.23263484,104060.0,104050.0,0.71802567]
[1748876032898,0.22302556,104060.0,104050.0,0.73724654]
[1748876033119,0.22302556,104060.0,104050.0,0.74685674]
[1748876033757,0.03082876,104060.0,104050.0,0.74685674]
[1748876033967,0.03082876,104060.0,104050.0,0.75646685]
[1748876033968,0.02121902,104060.0,104050.0,0.75646685]
[1748876034178,0.03082812,104060.0,104050.0,0.84897807]
[1748876034504,0.23263466,104060.0,104050.0,0.84897807]
[1748876034860,0.04043786,104060.0,104050.0,0.84897807]
[1748876035062,0.23263466,104060.0,104050.0,0.73724672]
[1748876035272,0.2422445,104060.0,104050.0,0.75646722]
[1748876035505,0.02121828,104060.0,104050.0,0.78956666]
[1748876035706,0.02121828,104060.0,104050.0,0.37856547]
[1748876035910,0.21341582,104060.0,104050.0,0.708215]
[1748876036114,0.24511582,104060.0,104050.0,0.71782557]
[1748876036312,0.06252876,104060.0,104050.0,0.72743577]
[1748876036513,0.06252876,104060.0,104050.0,0.74665636]
[1748876036785,0.30324888,104060.0,104050.0,0.00014542]
[1748876036992,0.61681619,104060.0,104050.0,0.00014542]
[1748876038033,0.61681619,104060.0,104050.0,0.20197146]
[1748876038281,0.60620654,104060.0,104050.0,0.00014542]
[1748876038480,0.60820654,104060.0,104050.0,0.00014542]
[1748876038655,0.60720654,104060.0,104050.0,0.00014542]
[1748876038829,0.60920654,104060.0,104050.0,0.00014542]
[1748876040799,0.99361654,104060.0,104050.0,0.00014542]
[1748876044735,0.60920654,104060.0,104050.0,0.00014542]
[1748876046146,0.60920654,104060.0,104050.0,0.1923607]
[1748876046367,0.004,104060.0,104050.0,0.21158176]
[1748876046571,0.02321866,104060.0,104050.0,0.22119187]
[1748876046779,0.004,104060.0,104050.0,0.7878073]
[1748876046983,0.02321828,104060.0,104050.0,0.76754617]
[1748876047186,0.03282775,104060.0,104050.0,0.76754617]
[1748876047393,0.02321828,104060.0,104050.0,0.76754617]
[1748876047591,0.0136091,104060.0,104050.0,0.76754617]
[1748876047796,0.02321838,104060.0,104050.0,0.76754617]
[1748876048005,0.004,104060.0,104050.0,0.86005739]
[1748876048248,0.004,104060.0,104050.0,0.81808526]
[1748876048656,0.004,104060.0,104050.0,0.81808388]
[1748876048859,0.002,104060.0,104050.0,0.81808388]
[1748876049270,0.36922604,104080.0,104060.0,0.26430599]
[1748876049467,0.57099381,104080.0,104070.0,0.6311557]
[1748876049671,0.57099381,104080.0,104070.0,0.64076406]
[1748876049873,0.5806018,104080.0,104070.0,0.64076406]
[1748876050070,0.36922604,104080.0,104070.0,0.65037233]
[1748876050276,0.57099381,104080.0,104070.0,0.6311558]
[1748876050478,0.57099381,104080.0,104070.0,0.64076434]
[1748876050719,0.57099381,104080.0,104070.0,0.65037279]
[1748876050937,0.37883394,104080.0,104070.0,0.65998115]
[1748876051182,0.35961787,104080.0,104070.0,0.6599806]
[1748876051385,0.36882212,104080.0,104070.0,0.7558349]
[1748876051586,0.37842965,104080.0,104070.0,0.7558349]
[1748876051792,0.38803801,104080.0,104070.0,0.7558349]
[1748876052205,0.58019853,104080.0,104070.0,0.74614663]
[1748876052794,0.58019853,104080.0,104070.0,0.7557549]
[1748876052996,0.58019853,104080.0,104070.0,0.3360749]
[1748876053236,0.58019853,104080.0,104070.0,0.74610663]
[1748876053406,0.57059109,104080.0,104070.0,0.74610663]
[1748876053705,0.21139552,104070.0,104060.0,0.21141601]
[1748876053878,0.22100416,104070.0,104060.0,0.72687031]
[1748876054081,0.22100416,104070.0,104060.0,0.73647959]
[1748876054282,0.22100416,104070.0,104060.0,1.13647959]
[1748876054492,0.02882573,104070.0,104060.0,1.14608878]
[1748876054679,0.23061289,104070.0,104060.0,1.14608878]
[1748876054886,0.2402218,104070.0,104060.0,1.14608878]
[1748876055199,0.01921681,104070.0,104060.0,1.15569778]
[1748876055367,0.02882554,104070.0,104060.0,1.15769778]
[1748876055569,0.00960808,104070.0,104060.0,1.13847857]
[1748876055769,0.22100342,104070.0,104060.0,1.13086994]
[1748876055999,0.23061215,104070.0,104060.0,1.14047913]
[1748876056198,0.23061215,104070.0,104060.0,1.13086994]
[1748876056417,0.06983381,104070.0,104060.0,1.13082994]
[1748876056631,0.07944263,104070.0,104060.0,1.14043913]
[1748876056784,0.24022097,104070.0,104060.0,1.14043913]
[1748876056983,0.2402218,104070.0,104060.0,0.72087913]
[1748876057207,0.04804346,104070.0,104060.0,1.13999913]
[1748876057592,0.21139534,104070.0,104060.0,1.13038994]
[1748876057804,0.22100407,104070.0,104060.0,1.13038994]
[1748876058469,0.23061289,104070.0,104060.0,1.13038994]
[1748876058683,0.2402218,104070.0,104060.0,1.13038994]
[1748876059228,0.00960808,104070.0,104060.0,0.81338979]
[1748876059454,0.01921653,104070.0,104060.0,1.23246979]
[1748876059672,0.02882517,104070.0,104060.0,1.23246979]
[1748876059906,0.0288247,104070.0,104060.0,1.23246979]
[1748876060065,0.00960808,104070.0,104060.0,1.23246979]
[1748876060506,0.62565121,104080.0,104070.0,0.2113957]
[1748876060832,0.62565121,104080.0,104070.0,0.31685827]
[1748876060833,0.01921478,104080.0,104070.0,0.31685827]
[1748876061164,0.01921459,104080.0,104070.0,0.31685827]
[1748876061363,0.02882212,104080.0,104070.0,0.31685827]
[1748876061774,0.58395526,104090.0,104080.0,0.20176786]
[1748876061986,0.58395499,104090.0,104080.0,0.21842338]
[1748876062189,0.59356141,104090.0,104080.0,0.64703091]
[1748876062391,0.60316848,104090.0,104080.0,0.62781576]
[1748876062647,0.21137521,104080.0,104070.0,0.28803264]
[1748876062975,0.24397521,104080.0,104070.0,0.72625019]
[1748876063096,0.24397521,104080.0,104070.0,0.74546718]
[1748876063097,0.25358292,104080.0,104070.0,0.74546718]
[1748876063323,0.24397548,104080.0,104070.0,0.29764146]
[1748876063541,0.27667548,104080.0,104070.0,0.73581864]
[1748876063937,0.26706777,104080.0,104070.0,0.10292]
[1748876064159,0.26706777,104080.0,104070.0,0.41896]
[1748876064401,0.26706777,104080.0,104070.0,0.10292]
[1748876064715,0.67104602,104080.0,104070.0,0.10292]
[1748876065677,0.60706777,104080.0,104070.0,0.29509834]
[1748876065919,0.60706777,104080.0,104070.0,0.30470725]
[1748876066156,0.59745987,104080.0,104060.0,0.64955383]
[1748876066470,0.02882573,104070.0,104060.0,0.73579913]
[1748876066866,0.22100462,104070.0,104060.0,0.73579913]
[1748876067270,0.01921737,104070.0,104060.0,0.73579913]
[1748876067512,0.01921718,104070.0,104060.0,0.73579913]
[1748876067741,0.02882591,104070.0,104060.0,0.73579913]
[1748876067968,0.23061307,104070.0,104060.0,0.73779913]
[1748876068197,0.23061307,104070.0,104060.0,0.31887913]
[1748876068447,0.06152591,104070.0,104060.0,0.73771913]
[1748876068655,0.26331307,104070.0,104060.0,0.73571913]
[1748876068855,0.26331307,104070.0,104060.0,0.73771913]
[1748876069062,0.26331307,104070.0,104060.0,0.73971913]
[1748876069264,0.0327,104070.0,104060.0,0.73971913]
[1748876069475,0.04230817,104070.0,104060.0,0.73971913]
[1748876069888,0.61467557,104080.0,104070.0,0.21139561]
[1748876070118,0.58197557,104080.0,104070.0,0.20178707]
[1748876070473,0.3592146,104080.0,104070.0,0.41897804]
[1748876070695,0.3592146,104080.0,104070.0,0.32646682]
[1748876070877,0.00960716,104080.0,104070.0,0.32646682]
[1748876071078,0.63350081,104090.0,104080.0,0.21137539]
[1748876071375,0.38994518,104090.0,104080.0,0.54647017]
[1748876071631,0.40915866,104090.0,104080.0,0.54647017]
[1748876072384,0.41115866,104090.0,104080.0,0.54647017]
[1748876072578,0.41315866,104090.0,104080.0,0.54647017]
[1748876072779,0.35360633,104090.0,104080.0,0.74524447]
[1748876073047,0.36321284,104090.0,104080.0,0.74524447]
[1748876073254,0.01360633,104090.0,104080.0,0.74524447]
[1748876073508,0.004,104090.0,104080.0,0.83775569]
[1748876073715,0.004,104090.0,104080.0,0.92109682]
[1748876073922,0.004,104090.0,104080.0,0.84312645]
[1748876074351,0.11096501,104120.0,104110.0,0.22091905]
[1748876074561,0.07835282,104120.0,104110.0,0.63963905]
[1748876074777,0.08795693,104120.0,104110.0,0.63963905]
[1748876074980,0.09756114,104120.0,104110.0,0.63963905]
[1748876075185,0.62964719,104120.0,104110.0,0.63003448]
[1748876075384,0.62964719,104120.0,104110.0,0.63963915]
[1748876075385,0.31974719,104120.0,104110.0,0.63963915]
[1748876075601,0.29013199,104120.0,104110.0,0.64924372]
[1748876075803,0.07883762,104120.0,104110.0,0.74509802]
[1748876076006,0.62052778,104120.0,104110.0,0.73549345]
[1748876076431,0.42844173,104120.0,104110.0,0.74509802]
[1748876076750,0.63013208,104120.0,104110.0,0.74509802]
[1748876076946,0.66023208,104120.0,104110.0,0.72588878]
[1748876077587,0.65062852,104120.0,104110.0,0.72588897]
[1748876077788,0.64102468,104120.0,104110.0,0.5145743]
[1748876078009,0.63142057,104120.0,104110.0,0.5145743]
[1748876078216,0.63142057,104120.0,104110.0,0.71628393]
[1748876078414,0.62181627,104120.0,104110.0,0.7066788]
[1748876078679,0.65301627,104120.0,104110.0,0.7066788]
[1748876079039,0.65301627,104120.0,104110.0,0.5145743]
[1748876079844,0.65301627,104120.0,104110.0,0.71628402]
[1748876080087,0.65301627,104120.0,104110.0,0.20170972]
[1748876080290,0.73849799,104120.0,104110.0,0.62987476]
[1748876080436,0.20170944,104110.0,104100.0,0.59210627]
[1748876080639,0.02881686,104100.0,104090.0,0.71963554]
[1748876080847,0.01921099,104100.0,104090.0,1.15030305]
[1748876081044,0.02881676,104100.0,104090.0,1.55030305]
[1748876081588,0.02881667,104100.0,104090.0,1.55030305]
[1748876082126,0.02881667,104100.0,104090.0,1.15330305]
[1748876082827,0.0096054,104100.0,104090.0,1.55330305]
[1748876083031,0.01921099,104100.0,104090.0,1.64581427]
[1748876083342,0.02021099,104100.0,104090.0,1.64881427]
[1748876083468,0.001,104100.0,104090.0,1.64881427]
[1748876084072,0.001,104100.0,104090.0,1.68111427]
[1748876084323,0.001,104100.0,104090.0,1.71261427]
[1748876084535,0.001,104100.0,104090.0,1.72178317]
[1748876086850,0.001,104100.0,104090.0,1.59761031]
[1748876087076,0.001,104100.0,104090.0,1.57170917]
[1748876087283,0.001,104100.0,104090.0,1.56254191]
[1748876087718,0.001,104100.0,104090.0,1.56250191]
[1748876087926,0.0106054,104100.0,104090.0,1.56250191]
[1748876088058,0.001,104100.0,104090.0,1.56250191]
[1748876088734,0.001,104100.0,104090.0,1.65501313]
[1748876090024,0.02021099,104100.0,104090.0,1.24710191]
[1748876090166,0.0428054,104100.0,104090.0,1.56246191]
[1748876090340,0.0332,104100.0,104090.0,1.56246191]
[1748876090546,0.001,104100.0,104090.0,1.56246191]
[1748876091191,0.0106054,104100.0,104090.0,1.56246191]